fUST/lending_fUST_20250806
["ID","MTS","AMOUNT","RATE_DAILY","PERIOD"]
[377431109,1754410243649,-451.45536678,0.00027945,2]
[377431110,1754410243659,-460.0,0.00027945,2]
[377431111,1754410243668,-460.0,0.00027945,2]
[377431112,1754410243678,-986.94,0.00027945,2]
[377431113,1754410243687,-460.0,0.00027945,2]
[377431114,1754410243699,-460.0,0.00027945,2]
[377431115,1754410243711,-702.16,0.00027945,2]
[377431116,1754410243720,-460.0,0.00027945,2]
[377431117,1754410243730,-460.0,0.00027945,2]
[377431118,1754410243741,-473.2,0.00027945,2]
[377431119,1754410243750,-460.0,0.00027945,2]
[377431120,1754410243760,-606.32,0.00027945,2]
[377431121,1754410243770,-460.0,0.00027945,2]
[377431122,1754410243779,-2494.53,0.00027945,2]
[377431123,1754410243789,-460.0,0.00027945,2]
[377431124,1754410243799,-186.18958925,0.00027945,2]
[377431125,1754410243808,-460.0,0.00027945,2]
[377431126,1754410243818,-74395.39,0.00027945,2]
[377431127,1754410243828,-1190.71,0.00027945,2]
[377431128,1754410243840,-573.07,0.00027945,2]
[377431129,1754410243850,-500.0,0.00027945,2]
[377431130,1754410243860,-460.0,0.00027945,2]
[377431131,1754410243870,-515.93,0.00027945,2]
[377431132,1754410243880,-460.0,0.00027945,2]
[377431133,1754410243889,-856.28,0.00027945,2]
[377431134,1754410243899,-540.79,0.00027945,2]
[377431135,1754410243909,-460.0,0.00027945,2]
[377431136,1754410243918,-460.0,0.00027945,2]
[377431137,1754410243928,-472.45,0.00027945,2]
[377431138,1754410243938,-1662.46,0.00027945,2]
[377431139,1754410243948,-460.0,0.00027945,2]
[377431140,1754410243961,-864.66,0.00027945,2]
[377431141,1754410243970,-679.13,0.00027945,2]
[377431142,1754410243980,-563.81,0.00027945,2]
[377431143,1754410243990,-460.0,0.00027945,2]
[377431144,1754410244000,-3184.23,0.00027945,2]
[377431145,1754410244010,-1361.89,0.00027945,2]
[377431146,1754410244020,-460.0,0.00027945,2]
[377431147,1754410244030,-460.0,0.00027945,2]
[377431148,1754410244039,-460.0,0.00027945,2]
[377431149,1754410244049,-460.0,0.00027945,2]
[377431150,1754410244058,-2500.63,0.00027945,2]
[377431151,1754410244068,-460.0,0.00027945,2]
[377431152,1754410244078,-460.0,0.00027945,2]
[377431153,1754410244088,-460.0,0.00027945,2]
[377431154,1754410244097,-460.0,0.00027945,2]
[377431155,1754410244108,-1183.79,0.00027945,2]
[377431156,1754410244117,-848.57,0.00027945,2]
[377431157,1754410244127,-460.0,0.00027945,2]
[377431158,1754410244136,-460.0,0.00027945,2]
[377431159,1754410244146,-460.0,0.00027945,2]
[377431160,1754410244155,-465.2,0.00027945,2]
[377431161,1754410244165,-154.441478,0.00027945,7]
[377431162,1754410244174,-460.0,0.00027945,2]
[377431163,1754410244183,-151.0,0.00027945,7]
[377431164,1754410244193,-460.0,0.00027945,2]
[377431165,1754410244203,-460.0,0.00027945,2]
[377431166,1754410244212,-2381.52,0.00027945,2]
[377431167,1754410244221,-460.0,0.00027945,2]
[377431168,1754410244231,-460.0,0.00027945,2]
[377431169,1754410244241,-460.0,0.00027945,2]
[377431170,1754410244251,-477.4,0.00027945,2]
[377431171,1754410244260,-151.0,0.00027945,7]
[377431172,1754410244271,-704.17,0.00027945,2]
[377431173,1754410244281,-460.0,0.00027945,2]
[377431174,1754410244290,-832.73,0.00027945,2]
[377431175,1754410244300,-713.09,0.00027945,2]
[377431177,1754410244310,-153.99,0.00027945,15]
[377431178,1754410244319,-153.36,0.00027966,15]
[377431179,1754410244329,-151.0,0.00027968,7]
[377431180,1754410244339,-151.833141,0.00027968,7]
[377431181,1754410244348,-629.07430766,0.00027968,5]
[377431182,1754410244358,-508.00434511,0.00027968,5]
[377431183,1754410244368,-1500.0,0.00027968,5]
[377431184,1754410244378,-1000.0,0.00027968,5]
[377431185,1754410244389,-1500.0,0.00027968,5]
[377431186,1754410244398,-400.28074485,0.00027968,5]
[377431187,1754410244408,-1500.0,0.00027968,5]
[377431188,1754410244417,-500.0,0.00027968,5]
[377431189,1754410244429,-1500.0,0.00027968,5]
[377431190,1754410244439,-636.0,0.00027969,2]
[377431191,1754410244448,-971.0,0.00027969,2]
[377431192,1754410244459,-2148.0,0.00027969,2]
[377431193,1754410244469,-158.64214305,0.00027973,5]
[377431194,1754410244479,-150.0,0.00027973,3]
[377431195,1754410244488,-460.0,0.0002798,2]
[377431196,1754410244498,-460.0,0.0002798,2]
[377431197,1754410244508,-527.3554621,0.00028,3]
[377431198,1754410244519,-527.3554621,0.00028,3]
[377431199,1754410244529,-312.16666667,0.00028,3]
[377431200,1754410244539,-153.34,0.00028044,15]
[377431201,1754410244548,-153.0,0.00028047,2]
[377431202,1754410244558,-153.0,0.00028047,2]
[377431203,1754410244567,-153.0,0.00028047,2]
[377431204,1754410244576,-153.0,0.00028047,2]
[377431205,1754410244586,-153.0,0.00028047,2]
[377431206,1754410244595,-153.0,0.00028047,2]
[377431207,1754410244605,-153.0,0.00028047,2]
[377431208,1754410244614,-153.0,0.00028047,2]
[377431209,1754410244624,-153.0,0.00028047,2]
[377431210,1754410244633,-153.0,0.00028047,2]
[377431211,1754410244643,-153.0,0.00028047,2]
[377431212,1754410244652,-153.0,0.00028047,2]
[377431213,1754410244662,-153.0,0.00028047,2]
[377431214,1754410244672,-153.36,0.00028066,15]
[377431215,1754410244683,-2301.40475005,0.00028069,9]
[377431216,1754410244693,-151.0,0.000281,19]
[377431217,1754410244707,-502.27320293,0.00028125,5]
[377431218,1754410244717,-500.0,0.00028125,5]
[377431219,1754410244726,-153.34,0.00028144,15]
[377431220,1754410244736,-153.36,0.00028166,15]
[377431221,1754410244747,-2567.4,0.00028197,3]
[377431222,1754410244756,-1283.7,0.00028197,3]
[377431223,1754410244766,-641.86,0.00028197,3]
[377431224,1754410244777,-320.92,0.00028197,3]
[377431225,1754410244786,-9542.36226565,0.00028197,3]
[377431226,1754410244795,-461.15695721,0.00028197,3]
[377431227,1754410244804,-231.72586818,0.00028197,3]
[377431228,1754410244813,-842.25606042,0.00028197,3]
[377431229,1754410244823,-216.4206905,0.00028197,3]
[377431230,1754410244833,-160.0,0.00028197,3]
[377431231,1754410244842,-160.0,0.00028197,3]
[377431232,1754410244851,-460.0,0.00028219,2]
[377431233,1754410244861,-532.81,0.00028219,2]
[377431234,1754410244870,-460.0,0.00028219,2]
[377431235,1754410244879,-460.0,0.00028219,2]
[377431236,1754410244890,-155.46,0.00028219,2]
[377431237,1754410244899,-460.0,0.00028219,2]
[377431238,1754410244908,-871.43,0.00028219,2]
[377431239,1754410244918,-1387.58,0.00028219,2]
[377431240,1754410244927,-460.0,0.00028219,2]
[377431241,1754410244936,-1600.0,0.00028219,7]
[377431242,1754410244945,-504.62,0.00028219,2]
[377431243,1754410244955,-460.0,0.00028219,2]
[377431244,1754410244963,-942.7,0.00028219,2]
[377431245,1754410244972,-460.0,0.00028219,2]
[377431246,1754410244982,-460.0,0.00028219,2]
[377431247,1754410244991,-460.0,0.00028219,2]
[377431248,1754410245000,-500.0,0.00028219,2]
[377431249,1754410245010,-460.0,0.00028219,2]
[377431250,1754410245021,-151.0,0.00028219,7]
[377431251,1754410245031,-460.0,0.00028219,2]
[377431252,1754410245041,-151.0,0.00028219,7]
[377431253,1754410245051,-537.28,0.00028219,2]
[377431254,1754410245060,-460.0,0.00028219,2]
[377431255,1754410245070,-151.0,0.00028219,7]
[377431256,1754410245080,-460.0,0.00028219,2]
[377431257,1754410245090,-151.0,0.00028219,7]
[377431258,1754410245099,-151.0,0.00028219,7]
[377431259,1754410245110,-986.94,0.00028219,2]
[377431260,1754410245120,-460.0,0.00028219,2]
[377431261,1754410245129,-151.0,0.00028219,7]
[377431262,1754410245138,-151.0,0.00028219,7]
[377431263,1754410245148,-151.0,0.00028219,7]
[377431264,1754410245158,-151.0,0.00028219,7]
[377431265,1754410245168,-460.0,0.00028219,2]
[377431266,1754410245177,-702.16,0.00028219,2]
[377431267,1754410245187,-460.0,0.00028219,2]
[377431268,1754410245197,-460.0,0.00028219,2]
[377431269,1754410245207,-473.2,0.00028219,2]
[377431270,1754410245216,-460.0,0.00028219,2]
[377431271,1754410245226,-606.32,0.00028219,2]
[377431272,1754410245236,-460.0,0.00028219,2]
[377431273,1754410245246,-2494.53,0.00028219,2]
[377431274,1754410245256,-460.0,0.00028219,2]
[377431275,1754410245268,-460.0,0.00028219,2]
[377431276,1754410245278,-74395.39,0.00028219,2]
[377431278,1754410245288,-1190.71,0.00028219,2]
[377431279,1754410245298,-573.07,0.00028219,2]
[377431280,1754410245308,-500.0,0.00028219,2]
[377431281,1754410245317,-460.0,0.00028219,2]
[377431282,1754410245327,-515.93,0.00028219,2]
[377431283,1754410245337,-151.0,0.00028219,7]
[377431284,1754410245356,-151.0,0.00028219,7]
[377431285,1754410245367,-856.28,0.00028219,2]
[377431286,1754410245379,-540.79,0.00028219,2]
[377431287,1754410245389,-460.0,0.00028219,2]
[377431288,1754410245399,-460.0,0.00028219,2]
[377431289,1754410245410,-472.45,0.00028219,2]
[377431290,1754410245420,-1662.46,0.00028219,2]
[377431291,1754410245430,-460.0,0.00028219,2]
[377431292,1754410245441,-864.66,0.00028219,2]
[377431293,1754410245451,-679.13,0.00028219,2]
[377431294,1754410245462,-563.81,0.00028219,2]
[377431295,1754410245472,-460.0,0.00028219,2]
[377431296,1754410245482,-3184.23,0.00028219,2]
[377431297,1754410245492,-1361.89,0.00028219,2]
[377431298,1754410245503,-151.0,0.00028219,7]
[377431299,1754410245513,-460.0,0.00028219,2]
[377431300,1754410245524,-460.0,0.00028219,2]
[377431301,1754410245534,-460.0,0.00028219,2]
[377431302,1754410245544,-188.66273,0.00028219,7]
[377431303,1754410245555,-460.0,0.00028219,2]
[377431304,1754410245565,-2500.63,0.00028219,2]
[377431305,1754410245574,-460.0,0.00028219,2]
[377431306,1754410245584,-448.1363172,0.00028219,2]
[377431307,1754410245594,-460.0,0.00028219,2]
[377431308,1754410245604,-460.0,0.00028219,2]
[377431309,1754410245615,-1183.79,0.00028219,2]
[377431310,1754410245625,-460.0,0.00028219,2]
[377431311,1754410245635,-460.0,0.00028219,2]
[377431312,1754410245645,-460.0,0.00028219,2]
[377431313,1754410245655,-465.2,0.00028219,2]
[377431314,1754410245665,-460.0,0.00028219,2]
[377431315,1754410245674,-460.0,0.00028219,2]
[377431316,1754410245684,-460.0,0.00028219,2]
[377431317,1754410245694,-2381.52,0.00028219,2]
[377431318,1754410245709,-460.0,0.00028219,2]
[377431319,1754410245720,-460.0,0.00028219,2]
[377431320,1754410245730,-460.0,0.00028219,2]
[377431321,1754410245740,-477.4,0.00028219,2]
[377431322,1754410245751,-704.17,0.00028219,2]
[377431323,1754410245760,-460.0,0.00028219,2]
[377431324,1754410245771,-832.73,0.00028219,2]
[377431325,1754410245782,-713.09,0.00028219,2]
[377431326,1754410245792,-1000.0,0.00028221,2]
[377431327,1754410245802,-500.0,0.00028221,5]
[377431328,1754410245812,-153.34,0.00028244,15]
[377431329,1754410245823,-460.0,0.00028254,2]
[377431330,1754410245833,-460.0,0.00028254,2]
[377431331,1754410245843,-153.36,0.00028266,15]
[377431332,1754410245854,-160.0,0.00028271,2]
[377431333,1754410245865,-527.73352177,0.00028274,2]
[377431334,1754410245875,-153.34,0.00028344,15]
[377431335,1754410245885,-153.36,0.00028366,15]
[377431336,1754410245896,-11307.03240692,0.00028393,2]
[377431337,1754410245906,-527.73352177,0.00028411,2]
[377431338,1754410245917,-153.34,0.00028444,15]
[377431339,1754410245927,-434.10853014,0.00028459,2]
[377431340,1754410245938,-153.36,0.00028466,15]
[377431341,1754410245948,-1500.0,0.00028468,5]
[377431342,1754410245959,-521.3620583,0.00028468,5]
[377431343,1754410245970,-151.0,0.00028493,7]
[377431344,1754410245981,-460.0,0.00028493,2]
[377431345,1754410245992,-151.0,0.00028493,7]
[377431346,1754410246004,-532.81,0.00028493,2]
[377431347,1754410246015,-151.0,0.00028493,7]
[377431348,1754410246025,-460.0,0.00028493,2]
[377431349,1754410246036,-460.0,0.00028493,2]
[377431350,1754410246047,-460.0,0.00028493,2]
[377431351,1754410246058,-871.43,0.00028493,2]
[377431352,1754410246069,-1387.58,0.00028493,2]
[377431353,1754410246079,-460.0,0.00028493,2]
[377431354,1754410246089,-504.62,0.00028493,2]
[377431355,1754410246100,-460.0,0.00028493,2]
[377431356,1754410246111,-151.0,0.00028493,7]
[377431357,1754410246121,-942.7,0.00028493,2]
[377431358,1754410246131,-152.621314,0.00028493,7]
[377431359,1754410246141,-460.0,0.00028493,2]
[377431360,1754410246151,-467.53378666,0.00028493,2]
[377431361,1754410246162,-151.0,0.00028493,7]
[377431362,1754410246172,-151.0,0.00028493,7]
[377431363,1754410246182,-460.0,0.00028493,2]
[377431364,1754410246192,-500.0,0.00028493,2]
[377431365,1754410246203,-151.0,0.00028493,7]
[377431366,1754410246213,-151.0,0.00028493,7]
[377431367,1754410246224,-460.0,0.00028493,2]
[377431369,1754410246234,-460.0,0.00028493,2]
[377431370,1754410246245,-537.28,0.00028493,2]
[377431371,1754410246255,-460.0,0.00028493,2]
[377431372,1754410246266,-460.0,0.00028493,2]
[377431373,1754410246277,-986.94,0.00028493,2]
[377431374,1754410246288,-460.0,0.00028493,2]
[377431375,1754410246298,-152.396567,0.00028493,7]
[377431376,1754410246308,-152.396567,0.00028493,7]
[377431377,1754410246319,-460.0,0.00028493,2]
[377431378,1754410246329,-702.16,0.00028493,2]
[377431379,1754410246339,-460.0,0.00028493,2]
[377431380,1754410246350,-473.2,0.00028493,2]
[377431381,1754410246360,-460.0,0.00028493,2]
[377431382,1754410246370,-606.32,0.00028493,2]
[377431383,1754410246385,-2494.53,0.00028493,2]
[377431384,1754410246395,-460.0,0.00028493,2]
[377431385,1754410246405,-460.0,0.00028493,2]
[377431386,1754410246415,-74395.39,0.00028493,2]
[377431387,1754410246425,-1190.71,0.00028493,2]
[377431388,1754410246435,-573.07,0.00028493,2]
[377431389,1754410246445,-500.0,0.00028493,2]
[377431390,1754410246456,-460.0,0.00028493,2]
[377431391,1754410246466,-515.93,0.00028493,2]
[377431392,1754410246476,-856.28,0.00028493,2]
[377431393,1754410246486,-540.79,0.00028493,2]
[377431394,1754410246496,-460.0,0.00028493,2]
[377431395,1754410246506,-460.0,0.00028493,2]
[377431396,1754410246516,-472.45,0.00028493,2]
[377431397,1754410246526,-1662.46,0.00028493,2]
[377431398,1754410246536,-350.52058777,0.00028493,2]
[377431399,1754410246546,-864.66,0.00028493,2]
[377431400,1754410246556,-679.13,0.00028493,2]
[377431401,1754410246566,-563.81,0.00028493,2]
[377431402,1754410246576,-460.0,0.00028493,2]
[377431403,1754410246586,-3184.23,0.00028493,2]
[377431404,1754410246596,-1361.89,0.00028493,2]
[377431405,1754410246606,-460.0,0.00028493,2]
[377431406,1754410246616,-460.0,0.00028493,2]
[377431407,1754410246626,-460.0,0.00028493,2]
[377431408,1754410246636,-175.93159362,0.00028493,2]
[377431409,1754410246646,-2500.63,0.00028493,2]
[377431410,1754410246656,-460.0,0.00028493,2]
[377431411,1754410246666,-460.0,0.00028493,2]
[377431412,1754410246675,-460.0,0.00028493,2]
[377431413,1754410246686,-1183.79,0.00028493,2]
[377431414,1754410246697,-460.0,0.00028493,2]
[377431415,1754410246709,-460.0,0.00028493,2]
[377431416,1754410246719,-460.0,0.00028493,2]
[377431417,1754410246729,-465.2,0.00028493,2]
[377431418,1754410246739,-460.0,0.00028493,2]
[377431419,1754410246749,-460.0,0.00028493,2]
[377431420,1754410246759,-487.54169264,0.00028493,2]
[377431421,1754410246769,-2381.52,0.00028493,2]
[377431422,1754410246781,-460.0,0.00028493,2]
[377431423,1754410246793,-460.0,0.00028493,2]
[377431424,1754410246802,-460.0,0.00028493,2]
[377431425,1754410246812,-477.4,0.00028493,2]
[377431426,1754410246822,-151.0,0.00028493,7]
[377431427,1754410246832,-704.17,0.00028493,2]
[377431428,1754410246843,-460.0,0.00028493,2]
[377431429,1754410246852,-832.73,0.00028493,2]
[377431430,1754410246862,-713.09,0.00028493,2]
[377431431,1754410246873,-2103.27402565,0.00028516,5]
[377431432,1754410246883,-500.0,0.00028516,5]
[377431433,1754410246893,-1500.0,0.00028516,5]
[377431434,1754410246902,-408.0,0.00028525,2]
[377431435,1754410246914,-460.0,0.00028528,2]
[377431436,1754410246923,-460.0,0.00028528,2]
[377431437,1754410246933,-153.34,0.00028544,15]
[377431439,1754410246943,-527.73352177,0.00028548,2]
[377431441,1754410246953,-153.36,0.00028566,15]
[377431443,1754410246962,-153.34,0.00028644,15]
[377431445,1754410246972,-150.0,0.00028659,2]
[377431447,1754410246982,-300.0,0.00028665,2]
[377431449,1754410246992,-300.0,0.00028665,2]
[377431451,1754410247002,-413.53740036,0.00028665,2]
[377431453,1754410247011,-22188.54324152,0.00028665,2]
[377431455,1754410247022,-300.0,0.00028665,2]
[377431457,1754410247032,-300.0,0.00028665,2]
[377431459,1754410247043,-1805.47998789,0.00028665,2]
[377431461,1754410247053,-300.0,0.00028665,2]
[377431463,1754410247063,-300.0,0.00028665,2]
[377431465,1754410247073,-300.0,0.00028665,2]
[377431467,1754410247083,-300.0,0.00028665,2]
[377431469,1754410247093,-302.60568207,0.00028665,2]
[377431471,1754410247104,-300.0,0.00028665,2]
[377431474,1754410247114,-300.0,0.00028665,2]
[377431476,1754410247124,-300.0,0.00028665,2]
[377431478,1754410247135,-151.0,0.00028665,2]
[377431480,1754410247144,-300.0,0.00028665,2]
[377431482,1754410247155,-151.0,0.00028665,2]
[377431484,1754410247165,-300.0,0.00028665,2]
[377431486,1754410247176,-151.0,0.00028665,2]
[377431488,1754410247187,-300.0,0.00028665,2]
[377431490,1754410247196,-151.0,0.00028665,2]
[377431492,1754410247206,-300.0,0.00028665,2]
[377431494,1754410247216,-151.0,0.00028665,2]
[377431496,1754410247227,-300.0,0.00028665,2]
[377431498,1754410247237,-151.0,0.00028665,2]
[377431500,1754410247247,-300.0,0.00028665,2]
[377431503,1754410247258,-151.0,0.00028665,2]
[377431505,1754410247268,-300.0,0.00028665,2]
[377431507,1754410247278,-300.0,0.00028665,2]
[377431509,1754410247288,-151.0,0.00028665,2]
[377431511,1754410247298,-151.0,0.00028665,2]
[377431513,1754410247308,-151.0,0.00028665,2]
[377431515,1754410247318,-151.0,0.00028665,2]
[377431517,1754410247328,-151.0,0.00028665,7]
[377431519,1754410247339,-153.3678588,0.00028666,15]
[377431520,1754410247350,-527.73352177,0.00028685,2]
[377431521,1754410247505,-153.34,0.00028744,15]
[377431522,1754410247519,-151.0,0.00028767,7]
[377431523,1754410247529,-460.0,0.00028767,2]
[377431524,1754410247539,-532.81,0.00028767,2]
[377431525,1754410247549,-460.0,0.00028767,2]
[377431526,1754410247558,-460.0,0.00028767,2]
[377431527,1754410247569,-151.0,0.00028767,7]
[377431528,1754410247579,-460.0,0.00028767,2]
[377431529,1754410247588,-871.43,0.00028767,2]
[377431530,1754410247598,-151.0,0.00028767,7]
[377431531,1754410247608,-151.0,0.00028767,7]
[377431532,1754410247618,-151.0,0.00028767,7]
[377431533,1754410247627,-1387.58,0.00028767,2]
[377431534,1754410247637,-460.0,0.00028767,2]
[377431535,1754410247647,-151.0,0.00028767,7]
[377431536,1754410247656,-504.62,0.00028767,2]
[377431537,1754410247665,-561.40315,0.00028767,2]
[377431538,1754410247675,-942.7,0.00028767,2]
[377431539,1754410247684,-460.0,0.00028767,2]
[377431540,1754410247695,-460.0,0.00028767,2]
[377431541,1754410247708,-500.0,0.00028767,2]
[377431542,1754410247718,-571.33,0.00028767,2]
[377431543,1754410247727,-151.0,0.00028767,7]
[377431544,1754410247736,-460.0,0.00028767,2]
[377431545,1754410247746,-155.87983,0.00028767,7]
[377431546,1754410247758,-537.28,0.00028767,2]
[377431547,1754410247770,-151.0,0.00028767,7]
[377431548,1754410247780,-315.08,0.00028767,2]
[377431549,1754410247789,-151.0,0.00028767,7]
[377431550,1754410247799,-460.0,0.00028767,2]
[377431551,1754410247809,-151.0,0.00028767,7]
[377431552,1754410247818,-986.94,0.00028767,2]
[377431553,1754410247828,-285.08,0.00028767,2]
[377431554,1754410247839,-151.0,0.00028767,7]
[377431555,1754410247849,-151.0,0.00028767,7]
[377431556,1754410247858,-151.0,0.00028767,7]
[377431557,1754410247867,-460.0,0.00028767,2]
[377431558,1754410247877,-702.16,0.00028767,2]
[377431559,1754410247887,-460.0,0.00028767,2]
[377431560,1754410247896,-473.2,0.00028767,2]
[377431561,1754410247906,-606.32,0.00028767,2]
[377431562,1754410247916,-460.0,0.00028767,2]
[377431563,1754410247926,-2494.53,0.00028767,2]
[377431564,1754410247936,-460.0,0.00028767,2]
[377431565,1754410247945,-460.0,0.00028767,2]
[377431566,1754410247955,-1190.71,0.00028767,2]
[377431567,1754410247965,-573.07,0.00028767,2]
[377431568,1754410247975,-363.48964383,0.00028767,2]
[377431569,1754410247985,-597.93,0.00028767,2]
[377431570,1754410247995,-515.93,0.00028767,2]
[377431571,1754410248004,-151.0,0.00028767,7]
[377431572,1754410248014,-281.203196,0.00028767,7]
[377431573,1754410248024,-856.28,0.00028767,2]
[377431574,1754410248034,-540.79,0.00028767,2]
[377431575,1754410248044,-460.0,0.00028767,2]
[377431576,1754410248055,-460.0,0.00028767,2]
[377431577,1754410248066,-472.45,0.00028767,2]
[377431578,1754410248076,-1662.46,0.00028767,2]
[377431579,1754410248086,-864.66,0.00028767,2]
[377431580,1754410248095,-679.13,0.00028767,2]
[377431581,1754410248105,-563.81,0.00028767,2]
[377431582,1754410248114,-460.0,0.00028767,2]
[377431583,1754410248123,-3184.23,0.00028767,2]
[377431584,1754410248132,-1361.89,0.00028767,2]
[377431585,1754410248142,-460.0,0.00028767,2]
[377431586,1754410248151,-460.0,0.00028767,2]
[377431587,1754410248161,-460.0,0.00028767,2]
[377431588,1754410248171,-2500.63,0.00028767,2]
[377431589,1754410248181,-460.0,0.00028767,2]
[377431590,1754410248190,-460.0,0.00028767,2]
[377431591,1754410248199,-460.0,0.00028767,2]
[377431592,1754410248209,-1183.79,0.00028767,2]
[377431593,1754410248218,-460.0,0.00028767,2]
[377431594,1754410248228,-460.0,0.00028767,2]
[377431595,1754410248238,-460.0,0.00028767,2]
[377431596,1754410248247,-465.2,0.00028767,2]
[377431597,1754410248257,-460.0,0.00028767,2]
[377431598,1754410248268,-460.0,0.00028767,2]
[377431599,1754410248278,-2381.52,0.00028767,2]
[377431600,1754410248287,-460.0,0.00028767,2]
[377431601,1754410248297,-460.0,0.00028767,2]
[377431602,1754410248306,-460.0,0.00028767,2]
[377431603,1754410248316,-477.4,0.00028767,2]
[377431604,1754410248325,-704.17,0.00028767,2]
[377431605,1754410248335,-225.23990959,0.00028767,2]
[377431606,1754410248345,-832.73,0.00028767,2]
[377431607,1754410248355,-713.09,0.00028767,2]
[377431608,1754410248363,-500.0,0.00028768,2]
[377431609,1754410248373,-461.15695721,0.000288,7]
[377431610,1754410248382,-231.72586818,0.000288,7]
[377431611,1754410248391,-842.25606042,0.000288,7]
[377431612,1754410248399,-216.4206905,0.000288,7]
[377431613,1754410248409,-450.41,0.000288,2]
[377431614,1754410248419,-160.0,0.000288,7]
[377431615,1754410248428,-460.0,0.00028802,2]
[377431616,1754410248437,-460.0,0.00028802,2]
[377431617,1754410248447,-260.0,0.00028819,2]
[377431618,1754410248458,-527.73352177,0.00028822,2]
[377431619,1754410248468,-153.34,0.00028844,15]
[377431620,1754410248480,-420.0,0.00028912,2]
[377431621,1754410248490,-420.0,0.00028912,2]
[377431622,1754410248500,-153.34,0.00028944,15]
[377431623,1754410248510,-151.0,0.00028944,7]
[377431624,1754410248524,-151.000001,0.00028944,7]
[377431625,1754410248534,-152.396567,0.00028944,7]
[377431626,1754410248546,-152.396567,0.00028944,7]
[377431627,1754410248556,-527.73352177,0.00028959,2]
[377431628,1754410248565,-1000.0,0.00029,3]
[377431629,1754410248577,-527.3554621,0.00029,10]
[377431630,1754410248587,-2000.0,0.00029016,5]
[377431631,1754410248596,-1680.0,0.0002904,2]
[377431632,1754410248607,-1600.0,0.00029041,7]
[377431633,1754410248616,-460.0,0.00029041,2]
[377431634,1754410248627,-532.81,0.00029041,2]
[377431635,1754410248636,-460.0,0.00029041,2]
[377431636,1754410248646,-460.0,0.00029041,2]
[377431637,1754410248655,-460.0,0.00029041,2]
[377431638,1754410248665,-871.43,0.00029041,2]
[377431639,1754410248674,-1387.58,0.00029041,2]
[377431640,1754410248684,-460.0,0.00029041,2]
[377431641,1754410248693,-504.62,0.00029041,2]
[377431642,1754410248706,-151.0,0.00029041,7]
[377431643,1754410248716,-942.7,0.00029041,2]
[377431644,1754410248725,-460.0,0.00029041,2]
[377431645,1754410248735,-199.843786,0.00029041,7]
[377431646,1754410248746,-460.0,0.00029041,2]
[377431647,1754410248756,-500.0,0.00029041,2]
[377431648,1754410248766,-460.0,0.00029041,2]
[377431649,1754410248780,-537.28,0.00029041,2]
[377431650,1754410248800,-460.0,0.00029041,2]
[377431651,1754410248817,-986.94,0.00029041,2]
[377431652,1754410248828,-460.0,0.00029041,2]
[377431653,1754410248839,-702.16,0.00029041,2]